fUSD/lending_fUSD_20240906
["ID","MTS","AMOUNT","RATE_DAILY","PERIOD"]
[337316522,1725597043135,-2694.80145435,0.00013,2]
[337316523,1725597043179,-16513.05539984,0.00013,2]
[337316527,1725597045340,-311.308985,0.00013,2]
[337316528,1725597045353,-5161.09703471,0.00013,2]
[337316529,1725597045369,-297.59077079,0.00013,2]
[337316537,1725597150078,251.0,0.00011771,2]
[337316538,1725597171741,2931.87,0.00011764,2]
[337316539,1725597193305,750.0,0.00011,2]
[337316540,1725597197069,189.86,0.00011753,2]
[337316542,1725597223844,270.77,0.00011753,2]
[337316543,1725597244815,726.99,0.00011773,2]
[337316544,1725597268464,250.0,0.00011757,2]
[337316545,1725597269109,200.36,0.00011757,2]
[337316546,1725597276811,1000.0,0.00025,60]
[337316547,1725597296933,173.26,0.00011757,2]
[337316548,1725597329069,250.0,0.00011756,2]
[337316549,1725597360857,157.56,0.00011756,2]
[337316550,1725597487950,777.44,0.00011746,2]
[337316551,1725597536758,151.62,9.828e-05,2]
[337316552,1725597609147,200.0,0.00011734,2]
[337316553,1725597642373,210.71,0.00011731,2]
[337316555,1725597685244,250.0,0.00011719,2]
[337316556,1725597852432,1000.0,0.00011748,2]
[337316558,1725597892677,-151.62,0.00012516,2]
[337316559,1725597892699,-160.66,0.00012577,2]
[337316560,1725597892722,-160.66,0.00012581,2]
[337316561,1725597892745,-160.66,0.00012584,2]
[337316562,1725597892767,-160.66,0.00012587,2]
[337316563,1725597892795,-160.66,0.00012591,2]
[337316564,1725597892817,-160.66,0.00012594,2]
[337316565,1725597892839,-160.66,0.00012597,2]
[337316566,1725597892862,-160.66,0.00012601,2]
[337316567,1725597892884,-300.0,0.00012603,2]
[337316568,1725597892906,-160.66,0.00012604,2]
[337316569,1725597892927,-5348.55,0.00012604,2]
[337316570,1725597892948,-499.99,0.00012607,2]
[337316571,1725597892971,-109.4816,0.00012607,2]
[337316596,1725597932021,-150.0,0.00012603,2]
[337316597,1725597932044,-51.1784,0.00012607,2]
[337316598,1725597932067,-160.66,0.00012611,2]
[337316599,1725597932088,-160.66,0.00012614,2]
[337316600,1725597932110,-160.66,0.00012617,2]
[337316601,1725597932132,-160.66,0.0001262,2]
[337316602,1725597932154,-160.66,0.00012624,2]
[337316603,1725597932175,-160.66,0.00012627,2]
[337316604,1725597932197,-160.66,0.0001263,2]
[337316605,1725597932219,-160.66,0.00012634,2]
[337316606,1725597932241,-160.66,0.00012637,2]
[337316607,1725597932263,-160.66,0.0001264,2]
[337316608,1725597932285,-421.24760668,0.00012729,2]
[337316609,1725597932306,-1560.2075,0.0001278,2]
[337316610,1725597932329,-150.0,0.0001278,2]
[337316611,1725597932350,-3000.0,0.0001287,2]
[337316612,1725597932371,-150.0,0.00012899,2]
[337316613,1725597932392,-14858.64485532,0.000129,2]
[337316614,1725598175414,152.89,0.00010685,2]
[337316617,1725598231975,-250.0,0.00012489,2]
[337316618,1725598231986,-318.42,0.00012582,2]
[337316619,1725598232341,-479.57301165,0.00012582,2]
[337316622,1725598238194,-702.00698835,0.00012582,2]
[337316623,1725598238204,-215.31,0.00012617,2]
[337316624,1725598238213,-303.50632573,0.00012899,2]
[337316625,1725598238222,-84.38668592,0.000129,2]
[337316635,1725598240010,-563.31,0.000129,2]
[337316636,1725598240211,-1629.78778387,0.000129,2]
[337316712,1725598244408,-687.64903637,0.000129,2]
[337316871,1725598246121,-268.87267792,0.000129,2]
[337316900,1725598246393,-32927.05769946,0.000129,2]
[337316956,1725598423298,414.14902812,0.00027,120]
[337316957,1725598481263,183.44,0.00010959,2]
[337316958,1725598616901,338.2,0.00027,120]
[337316964,1725598765351,155.76,0.00010514,2]
[337316971,1725598851357,-200.0,0.00012336,2]
[337316972,1725598851377,-500.0,0.00012336,2]
[337316973,1725598851397,-500.0,0.00012336,2]
[337316974,1725598851417,-500.0,0.00012336,2]
[337316975,1725598851652,-500.0,0.00012336,2]
[337316976,1725598851675,-500.0,0.00012336,2]
[337316977,1725598851696,-500.0,0.00012336,2]
[337316978,1725598851718,-500.0,0.00012336,2]
[337316979,1725598851740,-420.25369,0.00012336,2]
[337316980,1725598851761,-250.0,0.00012336,2]
[337316981,1725598851784,-629.74631,0.00012384,2]
[337316982,1725598866741,-4450.0,0.00012384,2]
[337316983,1725598889337,-5000.0,0.00012384,2]
[337316984,1725598902080,-3850.0,0.00012384,2]
[337316985,1725598933723,-531.83,0.00012282,2]
[337316986,1725598933744,-840.0,0.00012315,2]
[337316987,1725598933765,-3628.17,0.00012384,2]
[337316988,1725598940998,-5000.0,0.00012384,2]
[337316989,1725598963782,157.53,0.00010959,2]
[337316990,1725598975471,-1050.0,0.00012384,2]
[337316991,1725598999238,-250.0,0.00012319,2]
[337316992,1725598999259,-292.08369,0.00012384,2]
[337316993,1725598999278,-250.0,0.00012399,2]
[337316994,1725598999299,-314.79,0.00012421,2]
[337316995,1725599026067,250.0,0.00012464,2]
[337316996,1725599037170,-421.24760668,0.00012728,2]
[337316997,1725599037190,-471.87870332,0.0001277,2]
[337316999,1725599109461,-235.71832668,0.0001277,2]
[337317000,1725599128943,291.69524508,0.00011688,2]
[337317001,1725599129972,-175.06017736,0.000129,2]
[337317002,1725599129996,-47.52625088,0.000129,2]
[337317035,1725599263635,155.76,0.00010537,2]
[337317048,1725599420334,-152.26,0.00012426,2]
[337317049,1725599420358,-175.17,0.00012457,2]
[337317050,1725599420380,-150.0,0.00012642,2]
[337317051,1725599420402,-150.75966,0.00012642,2]
[337317052,1725599420425,-153.19728332,0.00012872,2]
[337317053,1725599420445,-300.0,0.00012899,2]
[337317054,1725599420465,-1189.56864912,0.000129,2]
[337317055,1725599420487,-162.47931085,0.000129,2]
[337317056,1725599420508,-150.34,0.000129,2]
[337317057,1725599420528,-1941.0,0.000129,2]
[337317058,1725599420549,-2626.37757648,0.000129,2]
[337317059,1725599420570,-2808.93474,0.000129,2]
[337317060,1725599420592,-39.91278023,0.000129,2]
[337317061,1725599421589,-136.31567606,0.000129,2]
[337317062,1725599421611,-321.35952284,0.000129,2]
[337317063,1725599421633,-207.18950648,0.000129,2]
[337317064,1725599421654,-153.81,0.0001299,2]
[337317065,1725599421674,-2341.3185979,0.00012996,2]
[337317066,1725599421697,-500.0,0.00012999,2]
[337317067,1725599421717,-408.42563645,0.00012999,2]
[337317068,1725599421738,-298.73300202,0.00012999,2]
[337317069,1725599421758,-500.0,0.00012999,2]
[337317070,1725599421779,-341.47763238,0.00012999,2]
[337317071,1725599421800,-612.97710979,0.00012999,2]
[337317072,1725599421821,-500.0,0.00012999,2]
[337317073,1725599421841,-500.0,0.00012999,2]
[337317074,1725599421863,-429.69073205,0.00012999,2]
[337317075,1725599421884,-2748.70258403,0.00013,2]
[337317076,1725599422592,-10000.0,0.00013,2]
[337317077,1725599423773,-10000.0,0.00013,2]
[337317078,1725599424175,-10000.0,0.00013,2]
[337317079,1725599424606,-10000.0,0.00013,2]
[337317080,1725599425025,-10000.0,0.00013,2]
[337317081,1725599425444,-10000.0,0.00013,2]
[337317082,1725599425829,-10000.0,0.00013,2]
[337317083,1725599426218,-10000.0,0.00013,2]
[337317084,1725599426627,-10000.0,0.00013,2]
[337317085,1725599427015,-265.91,0.00012584,2]
[337317086,1725599427037,-9734.09,0.00013,2]
[337317087,1725599427583,-10000.0,0.00013,2]
[337317088,1725599429064,-10000.0,0.00013,2]
[337317089,1725599429595,-10000.0,0.00013,2]
[337317090,1725599429944,-10000.0,0.00013,2]
[337317091,1725599430751,-10000.0,0.00013,2]
[337317092,1725599431158,-10000.0,0.00013,2]
[337317095,1725599432205,-4117.92629161,0.00013,2]
[337317096,1725599432266,-9743.17256487,0.00013,2]
[337317097,1725599432380,-2840.0,0.00013,2]
[337317098,1725599433069,-10000.0,0.00013,2]
[337317099,1725599433592,-10000.0,0.00013,2]
[337317100,1725599434060,-10000.0,0.00013,2]
[337317101,1725599436630,-10000.0,0.00013,2]
[337317102,1725599437217,-10000.0,0.00013,2]
[337317104,1725599438023,-10000.0,0.00013,2]
[337317107,1725599438253,-1278.1999999,0.00013,2]
[337317108,1725599438364,-1150.0,0.00013,2]
[337317138,1725599439022,-10000.0,0.00013,2]
[337317143,1725599440218,-851.91,0.00013,2]
[337317144,1725599440243,-10000.0,0.00013,2]
[337317145,1725599440539,-6.81817864,0.00013,2]
[337317159,1725599444304,-1704.9,0.00013,2]
[337317160,1725599444315,-5350.86586941,0.00013,2]
[337317220,1725599447510,155.7,0.00010959,2]
[337317221,1725599447857,-9085.0,0.00013,2]
[337317222,1725599454220,830.93,0.00010959,2]
[337317224,1725599511844,-10000.0,0.00013,7]
[337317229,1725599523138,-2000.0,0.00013,7]
[337317230,1725599596811,-1335.3,0.00013,5]
[337317231,1725599624497,-217.21,0.00012364,2]
[337317232,1725599624518,-359.0,0.00012394,2]
[337317233,1725599624538,-1238.02,0.00012395,2]
[337317234,1725599624559,-2493.18,0.00012428,2]
[337317235,1725599624580,-2235.19,0.00012535,2]
[337317236,1725599639110,153.0,9.891e-05,2]
[337317237,1725599648510,-318.8556,0.00012328,2]
[337317238,1725599648533,-153.0,0.00012364,2]
[337317239,1725599650949,248.226519,0.00012267,2]
[337317240,1725599661043,250.0,0.00012395,2]
[337317241,1725599668428,285.38,0.00012395,2]
[337317242,1725599668460,333.51641333,0.00012335,2]
[337317243,1725599686641,150.55,0.00012395,2]
[337317244,1725599694581,-10737.0,0.00012435,2]
[337317245,1725599698607,-5220.0,0.00012435,2]
[337317246,1725599701391,300.0,0.00012434,2]
[337317247,1725599740329,-328.0,0.00012598,2]
[337317248,1725599745809,1000.0,0.000151,120]
[337317249,1725599753210,-2346.73155067,0.000127,2]
[337317250,1725599753232,-869.239917,0.000128,2]
[337317251,1725599775989,1000.0,0.0002,120]
[337317252,1725599836229,500.49977811,0.00027,120]
[337317253,1725599846811,311.62,0.00010304,2]
[337317254,1725599937802,150.45,0.00010959,2]
[337317255,1725599953373,450.0,0.00011979,2]
[337317257,1725599964566,3744.76,0.00011958,2]
[337317260,1725600017941,3518.727446,0.00012,2]
[337317261,1725600020523,184.02536741,0.00012,2]
[337317262,1725600034111,150.0,0.00011862,2]
[337317263,1725600044284,1500.0,0.00011862,2]
[337317264,1725600074692,167.4,0.00011903,2]
[337317265,1725600088162,200.0,0.00011867,2]
[337317266,1725600133295,250.0,0.00011844,2]
[337317267,1725600135403,1000.0,0.00011844,2]
[337317268,1725600136179,153.0,9.475e-05,2]
[337317269,1725600148359,151.79,0.00011885,2]
[337317270,1725600182966,238.46,0.00011844,2]
[337317271,1725600202772,250.0,0.00011844,2]
[337317272,1725600220640,1657.96,0.00012,2]
[337317273,1725600245833,441.14,0.00011884,2]
[337317274,1725600261301,200.0,0.00011924,2]
[337317275,1725600323874,184.02536741,0.00011974,2]
[337317276,1725600331229,1250.0,0.00025,60]
[337317278,1725600351912,1275.45221953,0.00025,60]
[337317279,1725600411544,296.03,0.00010142,2]
[337317280,1725600414766,5165.24951937,0.000107,15]
[337317326,1725600449176,1872.38,0.00011971,2]
[337317329,1725600473255,250.0,0.00011971,2]
[337317333,1725600534477,-1179.87,0.00012008,2]
[337317334,1725600534505,-667.54,0.0001203,2]
[337317335,1725600534535,-300.0,0.00012073,2]
[337317336,1725600534564,-5029.63991149,0.00012074,2]
[337317337,1725600534598,-7177.04991149,0.00012074,2]
[337317338,1725600534835,-1274.75990501,0.00012074,2]
[337317339,1725600559288,-300.0,0.00012073,2]
[337317340,1725600559318,-7189.62710605,0.00012074,2]
[337317341,1725600559354,-3228.92316596,0.00012074,2]
[337317342,1725600559384,-4077.0,0.00012074,2]
[337317343,1725600559414,-165.26,0.00012105,2]
[337317344,1725600559443,-18.44394009,0.00012107,2]
[337317345,1725600559476,-1486.73605991,0.00012107,2]
[337317346,1725600559505,-1450.3081155,0.00012272,2]
[337317347,1725600583903,-150.0,0.0001207,2]
[337317348,1725600583933,-1279.20992772,0.00012272,2]
[337317349,1725600583964,-155.95766128,0.00012272,2]
[337317351,1725600609059,-1500.0,0.00012262,2]
[337317352,1725600609092,-39.29233872,0.00012272,2]
[337317353,1725600609124,-168.50148898,0.00012272,2]
[337317354,1725600609154,-220.26073675,0.00012372,2]
[337317355,1725600609195,-71.94543555,0.00012406,2]
[337317356,1725600612734,5514.4539,0.00011908,2]
[337317367,1725600632443,-224.08456445,0.00012406,2]
[337317368,1725600632454,-140.98302774,0.00012603,2]
[337317369,1725600632559,-210.49588836,0.00012603,2]
[337317370,1725600632568,-520.32417368,0.0001287,2]
[337317371,1725600632620,-69.34001632,0.0001287,2]
[337317372,1725600632629,-680.01663171,0.0001289,2]
[337317375,1725600636956,11494.38,0.00011974,2]
[337317377,1725600638426,-411.23887168,0.0001289,2]
[337317378,1725600638436,-300.0,0.00012899,2]
[337317379,1725600638445,-987.16058758,0.000129,2]
[337317381,1725600638595,-2510.72,0.000129,2]
[337317382,1725600638607,-4555.35741242,0.000129,2]
[337317383,1725600638617,-222.88946008,0.000129,2]
[337317384,1725600638627,-175.47490241,0.000129,2]
[337317385,1725600638638,-2363.73981885,0.000129,2]
[337317386,1725600638648,-176.22845627,0.000129,2]
[337317387,1725600638659,-2093.42314573,0.000129,2]
[337317388,1725600638670,-2188.21940306,0.00012996,2]
[337317389,1725600638685,-474.63870164,0.00012996,2]
[337317390,1725600638694,-1751.3282065,0.00012996,2]
[337317391,1725600638703,-541.0,0.00013,2]
[337317392,1725600638715,-265110.55082822,0.00013,2]
[337317913,1725600644379,-55.63777082,0.00013,2]
[337317916,1725600644401,-7820.07402594,0.00013,2]
[337317919,1725600644416,-256.46,0.00013,2]
[337317921,1725600644426,-1091.48138739,0.00013,2]
[337317923,1725600644438,-1249.688,0.00013,2]
[337317925,1725600644450,-5651.6,0.00013,2]
[337317928,1725600644465,-1389.0,0.00013,2]
[337318136,1725600646659,-200.0,0.00012609,2]
[337318138,1725600646668,-2635.0,0.00013,2]
[337319916,1725600774849,19166.0,0.00025,60]
[337319917,1725600776688,2000.0,0.00027,120]
[337319918,1725600797467,350.0,0.00027,120]
[337319919,1725600798199,750.0,0.00011,2]
[337319923,1725600943685,300.0,0.00027,120]
[337319925,1725600966711,1745.6,0.00027,120]
[337319927,1725601009877,276.45,0.0001012,2]
[337319928,1725601013849,794.53,0.00027,120]
[337319954,1725601154860,151.79,0.00011981,2]
[337319955,1725601188425,840.0,0.00011957,2]
[337320023,1725601213635,150.0,0.00011895,2]
[337320132,1725601291257,200.0,0.00011865,2]
[337320139,1725601312478,250.0,0.00011869,2]
[337320147,1725601329690,250.0,0.00011915,2]
[337320190,1725601481864,150.0,0.000119,2]
[337320192,1725601510112,181.86,0.00011844,2]
[337320194,1725601532519,23900.0,0.0001183,2]
[337320196,1725601569708,262.62,0.00010005,2]
[337320198,1725601608753,1499.93,0.00011886,2]
[337320199,1725601625830,1055.18,0.0001197,2]
[337320200,1725601646749,179.82332752,0.00011966,2]
[337320201,1725601703104,158.82,0.00010959,2]
[337320202,1725601709331,328.0,0.00011903,2]
[337320203,1725601743644,-154.97,0.00012056,2]
[337320204,1725601743676,-250.0,0.00012066,2]
[337320205,1725601743709,-290.88,0.00012187,2]
[337320206,1725601743741,-150.0,0.00012247,2]
[337320207,1725601743773,-262.62,0.00012269,2]
[337320208,1725601743805,-3399.94085289,0.00012269,2]
[337320209,1725601743837,-154.97,0.00012272,2]
[337320210,1725601743869,-154.97,0.00012272,2]
[337320211,1725601743899,-154.97,0.00012272,2]
[337320212,1725601743929,-154.97,0.00012272,2]
[337320213,1725601743960,-154.97,0.00012272,2]
[337320214,1725601743990,-179.82332751,0.00012383,2]
[337320215,1725601744021,-138.71288631,0.00012383,2]
[337320219,1725601831513,-167.4,0.00012095,2]
[337320220,1725601831522,-133.47637752,0.00012384,2]
[337320221,1725601831683,-166.51362248,0.00012384,2]
[337320222,1725601831693,-378.06345745,0.00012384,2]
[337320223,1725601831704,-368.11654255,0.00012384,2]
[337320224,1725601831713,-50.42353418,0.00012471,2]
[337320225,1725601831724,-189.23244241,0.00012471,2]
[337320226,1725601831733,-150.0,0.000126,2]
[337320227,1725601831742,-78.94040093,0.000126,2]
[337320410,1725601839628,-1822.6175,0.00012284,2]
[337320412,1725601839639,-71.05959907,0.000126,2]
[337320414,1725601839648,-150.0,0.000126,2]
[337320416,1725601839658,-150.0,0.000126,2]
[337320418,1725601839667,-375.88012383,0.00012686,2]
[337320420,1725601839676,-150.0,0.000127,2]
[337320422,1725601839685,-2042.81024937,0.000128,3]
[337320424,1725601839694,-179.82332751,0.000128,2]
[337320426,1725601839703,-1408.17988677,0.0001287,2]
[337320428,1725601839715,-1302.53700323,0.0001287,2]
[337320430,1725601839724,-499.99,0.00012899,2]
[337320432,1725601839733,-1000.0,0.00012899,2]
[337320434,1725601839742,-150.0,0.00012899,2]
[337320436,1725601839751,-2725.0771,0.000129,2]
[337320438,1725601839760,-150.0,0.000129,2]
[337320440,1725601839769,-152.59925876,0.000129,2]
[337320442,1725601839778,-2841.91226525,0.000129,2]
[337320444,1725601839790,-1707.01201084,0.000129,2]
[337320446,1725601839805,-1559.66462391,0.000129,2]
[337320448,1725601839814,-57.23114351,0.000129,2]
[337320451,1725601839826,-233.76015649,0.000129,2]
[337320453,1725601839837,-210.53952442,0.000129,2]
[337320455,1725601839846,-1000.0,0.000129,2]
[337320457,1725601839855,-206.7960771,0.000129,2]
[337320459,1725601839865,-3018.65009825,0.000129,2]
[337320461,1725601839874,-2108.33183568,0.000129,2]
[337320463,1725601839883,-1000.0,0.00012949,2]
[337320465,1725601839892,-7738.58467096,0.0001297,2]
[337320467,1725601839902,-2268.95360697,0.00012996,2]
[337320469,1725601839917,-618.66951153,0.00012996,2]
[337320471,1725601839926,-1816.2483733,0.00012996,2]
[337320473,1725601839935,-1213.5834907,0.00012996,2]
[337320475,1725601839945,-1218.0899074,0.00012996,2]
[337320477,1725601839955,-226.3859058,0.00012996,2]
[337320479,1725601839966,-500.0,0.00012999,2]
[337320481,1725601839975,-500.0,0.00012999,2]
[337320483,1725601839984,-453.09806486,0.00012999,2]
[337320486,1725601839995,-500.0,0.00012999,2]
[337320488,1725601840005,-500.0,0.00012999,2]
[337320490,1725601840014,-189.93643615,0.00012999,2]
[337320492,1725601840023,-62281.74728086,0.00012999,2]
[337320494,1725601840033,-1189.42830571,0.00012999,2]
[337320496,1725601840046,-609.0,0.00013,2]
[337320498,1725601840055,-37661.97890866,0.00013,2]
[337320500,1725601840066,-20106.592846,0.00013,2]
[337320502,1725601840077,-415.1,0.00013,2]
[337320528,1725601840481,-9531.24449686,0.00013,2]
[337320531,1725601840499,-10795.95706516,0.00013,2]
[337320534,1725601840510,-2834.54999994,0.00013,2]
[337320536,1725601840521,-55494.33347668,0.00013,2]
[337320538,1725601840536,-516.437086,0.00013,2]
[337320540,1725601840546,-661.0,0.00013,2]
[337320543,1725601840565,-1941.44922559,0.00013,2]
[337320546,1725601840575,-251.37691198,0.00013,2]
[337320548,1725601840590,-54179.55407064,0.00013,2]
[337320550,1725601840601,-703.655,0.00013,2]
[337320753,1725601842536,-7707.22865925,0.00013,2]
[337320755,1725601842548,-430.65367495,0.00013,2]
[337320867,1725601843779,-296.13443335,0.00013,2]
[337320870,1725601843798,-767.00700092,0.00013,2]
[337320872,1725601843810,-640.224,0.00013,2]
[337320875,1725601843821,-707.3898016,0.00013,2]
[337320877,1725601843834,-259578.56010228,0.00013,2]
[337320879,1725601843848,-2126.874996,0.00013,2]
[337320883,1725601843871,-587.62768636,0.00013,2]
[337320885,1725601843882,-5626.523833,0.00013,2]
[337320888,1725601843895,-1732.88242047,0.00013,2]
[337320890,1725601843911,-1388.82081271,0.00013,2]
[337320892,1725601843922,-604.07802196,0.00013,2]
[337320894,1725601843932,-1309.5547277,0.00013,2]
[337320897,1725601843952,-2421.6,0.00013,2]
[337320899,1725601843963,-394.58101345,0.00013,2]
[337320902,1725601843973,-3079.99995,0.00013,2]
[337322124,1725601856113,272.81,0.00010959,2]
[337323076,1725601866624,227.34,0.00010959,2]
[337323568,1725601878676,189.45,0.00010959,2]
[337323569,1725601889448,157.87,0.00010959,2]
[337323570,1725601900209,789.39,0.00010959,2]
[337323571,1725602009179,512.75,0.00012,2]
[337323573,1725602070649,245.04,0.00010285,2]
[337323576,1725602250897,155.7,0.00010959,2]
[337323578,1725602533607,23900.0,0.00011975,2]
[337323579,1725602628739,232.78,0.00010085,2]
[337323581,1725602699034,640.09,0.0001195,2]
[337323585,1725602785667,154.85,0.00011996,2]
[337323586,1725602788232,262.4,0.00011996,2]
[337323588,1725602851919,150.45,0.00010959,2]
[337323589,1725602893678,300.0,0.00012,3]
[337323590,1725602897534,250.0,0.00011995,2]
[337323591,1725602908869,250.8550527,0.00012,3]
[337323592,1725602915809,-232.7,0.00012038,2]
[337323594,1725602915850,-737.6,0.00012042,2]
[337323595,1725602915892,-250.0,0.00012044,2]
[337323596,1725602915930,-150.0,0.00012044,2]
[337323597,1725602915967,-4205.75,0.0001206,2]
[337323598,1725602916219,-157.58,0.00012248,2]
[337323599,1725602916262,-250.0,0.00012248,2]
[337323600,1725602916308,-1511.06424241,0.00012284,2]
[337323601,1725602916367,-7494.69424241,0.00012284,2]
[337323602,1725602916418,-2014.03230698,0.00012284,2]
[337323603,1725602940815,-250.0,0.00012165,2]
[337323604,1725602940855,-3732.1997082,0.00012284,2]
[337323605,1725602940896,-232.78,0.00012349,2]
[337323606,1725602940934,-1711.87,0.00012349,2]
[337323607,1725602940973,-1512.61205008,0.00012399,2]
[337323608,1725602941012,-395.30089996,0.00012409,2]
[337323609,1725602941056,-6188.09636831,0.00012409,2]
[337323610,1725602965926,-250.0,0.00012174,2]
[337323611,1725602965972,-300.0,0.00012408,2]
[337323612,1725602966014,-150.0,0.00012408,2]
[337323613,1725602966054,-7415.21983877,0.00012409,2]
[337323614,1725602966100,-8104.65562704,0.00012409,2]
[337323615,1725602990902,-150.0,0.0001222,2]
[337323616,1725602990942,-5110.54353825,0.00012409,2]
[337323617,1725602990987,-8439.61734809,0.00012409,2]
[337323620,1725603031723,-1803.35130065,0.0001227,2]
[337323621,1725603031748,-1497.14869935,0.0001227,2]
[337323622,1725603031759,-4681.4495079,0.00012409,2]
[337323623,1725603031850,-2587.71929825,0.00012409,2]
[337323624,1725603031864,-6075.67247573,0.00012409,2]
[337323625,1725603031876,-150.0,0.000127,2]
[337323626,1725603031888,-375.88012384,0.00012766,2]
[337323627,1725603031899,-491.38682,0.0001287,2]
[337323628,1725603031911,-499.99,0.00012899,2]
[337323629,1725603031922,-152.59925876,0.000129,2]
[337323630,1725603031933,-2038.59973885,0.000129,2]
[337323631,1725603031947,-2092.72318603,0.000129,2]
[337323632,1725603031960,-918.50707512,0.000129,2]
[337323633,1725603031971,-274.70237398,0.000129,2]
[337323636,1725603037881,-732.29762602,0.000129,2]
[337323637,1725603037893,-1000.0,0.000129,2]
[337323638,1725603037904,-1000.0,0.000129,3]
[337323639,1725603037916,-150.99,0.000129,2]
[337323640,1725603037927,-619.5982,0.000129,2]
[337323641,1725603037938,-5559.0,0.000129,2]
[337323642,1725603037949,-280.47013304,0.000129,2]
[337323643,1725603037960,-4665.7671165,0.00012996,2]
[337323644,1725603037970,-1641.5373688,0.00012996,2]
[337323645,1725603037981,-3944.39,0.00012996,2]
[337323646,1725603037991,-550.0,0.00013,2]
[337323647,1725603038002,-35491.54955562,0.00013,2]
[337323648,1725603038016,-4465.50472481,0.00013,2]
[337323808,1725603039840,-566.915,0.00013,2]
[337323820,1725603039949,-8072.23,0.00013,2]
[337325217,1725603054213,545.62,0.00010959,2]
[337326169,1725603120066,232.87,0.00010503,2]
[337326177,1725603219269,-2000.0,0.00012419,2]
[337326178,1725603260645,-4670.0,0.00012419,2]
[337326179,1725603260657,-17230.0,0.00012419,2]
[337326180,1725603260667,-560.0,0.00012419,2]
[337326181,1725603260676,-150.8,0.0001248,2]
[337326182,1725603260685,-232.87,0.00012767,2]
[337326183,1725603260695,-3345.21523747,0.000129,2]
[337326184,1725603260704,-162.09702614,0.000129,2]
[337326185,1725603260715,-219.01773639,0.00013,2]
[337326186,1725603302303,-790.08,0.00012457,2]
[337326187,1725603302334,-321.35952284,0.000129,2]
[337326188,1725603302366,-2043.0333,0.000129,2]
[337326189,1725603302385,-790.08,0.00013,2]
[337326190,1725603302401,-321.35952284,0.00013,2]
[337326191,1725603302412,-2043.0333,0.00013,2]
[337326192,1725603302424,-2634.05435432,0.00013,2]
[337326209,1725603678829,209.58,0.00010247,2]
[337326212,1725603942459,450.0,0.00012,2]
[337326214,1725604036645,1258.42824809,0.00027,120]
[337326221,1725604167636,-401.81,0.00012041,2]
[337326224,1725604167681,-250.0,0.00012041,2]
[337326225,1725604167723,-250.0,0.00012065,2]
[337326226,1725604168025,-157.58,0.00012067,2]
[337326227,1725604168074,-367.93,0.0001208,2]
[337326228,1725604168116,-6548.94179926,0.00012102,2]
[337326229,1725604168167,-4584.76716437,0.00012102,2]
[337326230,1725604179260,199.1,0.00010244,2]
[337326231,1725604192228,-8227.48237853,0.00012102,2]
[337326232,1725604192330,-4538.80865784,0.00012102,2]
[337326233,1725604192369,-401.48,0.00012128,2]
[337326234,1725604192411,-150.84,0.00012184,2]
[337326235,1725604192453,-45.05112191,0.00012213,2]
[337326241,1725604231883,-250.0,0.00012194,2]
[337326242,1725604231892,-167.4,0.00012278,2]
[337326243,1725604231904,-199.1,0.00012508,2]